[Event "*** Titled Tuesday Blitz"]
[Site "Chess.com"]
[Date "2019.02.05"]
[Round "4"]
[White "tigra"]
[Black "Sashadav97"]
[Result "1/2-1/2"]
[WhiteElo "2747"]
[BlackElo "2633"]
[TimeControl "180+2"]
[EndTime "13:57:44 PST"]
[Termination "Game drawn by repetition"]

1. c4 {[%clk 0:03:00.3]} 1... e6 {[%clk 0:03:00.3]} 2. e4 {[%clk 0:02:59]} 2...
d5 {[%clk 0:03:02.2]} 3. exd5 {[%clk 0:02:59.1]} 3... exd5 {[%clk 0:03:04.1]} 4.
d4 {[%clk 0:03:00.5]} 4... Nf6 {[%clk 0:03:00]} 5. Nc3 {[%clk 0:03:01.5]} 5...
Bb4 {[%clk 0:02:58.9]} 6. Nf3 {[%clk 0:02:59.9]} 6... O-O {[%clk 0:02:59.6]} 7.
Bd3 {[%clk 0:02:58.4]} 7... dxc4 {[%clk 0:02:55.9]} 8. Bxc4 {[%clk 0:02:59.2]}
8... Bg4 {[%clk 0:02:57]} 9. O-O {[%clk 0:02:58.3]} 9... Nc6 {[%clk 0:02:56.5]}
10. Be3 {[%clk 0:02:58]} 10... h6 {[%clk 0:02:52.1]} 11. h3 {[%clk 0:02:58.5]}
11... Bh5 {[%clk 0:02:53.4]} 12. a3 {[%clk 0:02:57.4]} 12... Bd6 {[%clk
0:02:53.4]} 13. Rc1 {[%clk 0:02:54.8]} 13... a6 {[%clk 0:02:49]} 14. Re1 {[%clk
0:02:55.1]} 14... Qd7 {[%clk 0:02:48.3]} 15. d5 {[%clk 0:02:41.9]} 15... Bxf3
{[%clk 0:02:16.7]} 16. Qxf3 {[%clk 0:02:40.9]} 16... Ne5 {[%clk 0:02:17.7]} 17.
Qe2 {[%clk 0:02:41.9]} 17... Nxc4 {[%clk 0:02:18.2]} 18. Qxc4 {[%clk 0:02:43.8]}
18... Rfe8 {[%clk 0:02:18.9]} 19. Bd4 {[%clk 0:02:40.7]} 19... Rxe1+ {[%clk
0:02:19.4]} 20. Rxe1 {[%clk 0:02:40.8]} 20... Re8 {[%clk 0:02:21]} 21. Rxe8+
{[%clk 0:02:40.1]} 21... Qxe8 {[%clk 0:02:22.9]} 22. Kf1 {[%clk 0:02:36.9]}
22... Be5 {[%clk 0:02:06.5]} 23. g3 {[%clk 0:02:24.2]} 23... Bxd4 {[%clk
0:01:56.1]} 24. Qxd4 {[%clk 0:02:26.1]} 24... Qe7 {[%clk 0:01:57.4]} 25. Qa7
{[%clk 0:02:21.7]} 25... Qd7 {[%clk 0:01:58.6]} 26. Qxb7 {[%clk 0:02:20.5]}
26... Qxh3+ {[%clk 0:01:59]} 27. Ke1 {[%clk 0:02:20.9]} 27... Qh1+ {[%clk
0:01:52.6]} 28. Ke2 {[%clk 0:02:21.6]} 28... Qh5+ {[%clk 0:01:53.5]} 29. Ke1
{[%clk 0:02:22.6]} 29... Qh1+ {[%clk 0:01:54.3]} 30. Kd2 {[%clk 0:02:18.7]}
30... Qf3 {[%clk 0:01:53.7]} 31. Qa7 {[%clk 0:02:10.7]} 31... Ng4 {[%clk
0:01:19]} 32. Qa8+ {[%clk 0:02:06]} 32... Kh7 {[%clk 0:01:17.6]} 33. Qxa6 {[%clk
0:02:07.9]} 33... Nxf2 {[%clk 0:01:10.2]} 34. a4 {[%clk 0:02:07]} 34... f5
{[%clk 0:01:06]} 35. Qe2 {[%clk 0:02:03.1]} 35... Qxg3 {[%clk 0:01:00.8]} 36. a5
{[%clk 0:02:03.6]} 36... Ng4 {[%clk 0:00:55.1]} 37. a6 {[%clk 0:02:04.1]} 37...
Qf4+ {[%clk 0:00:55.9]} 38. Kc2 {[%clk 0:02:04.8]} 38... Qd4 {[%clk 0:00:52.6]}
39. Kb1 {[%clk 0:01:45]} 39... Ne3 {[%clk 0:00:44.7]} 40. Kc1 {[%clk 0:01:34.1]}
40... f4 {[%clk 0:00:42.4]} 41. Nb5 {[%clk 0:01:20.2]} 41... Qc5+ {[%clk
0:00:37.7]} 42. Kb1 {[%clk 0:01:20.8]} 42... Nxd5 {[%clk 0:00:21.6]} 43. Qe4+
{[%clk 0:01:05.8]} 43... Kh8 {[%clk 0:00:22.4]} 44. a7 {[%clk 0:01:06.1]} 44...
Nb6 {[%clk 0:00:23.2]} 45. Nc3 {[%clk 0:00:57.8]} 45... Qe3 {[%clk 0:00:21.4]}
46. a8=R+ {[%clk 0:00:19.7]} 46... Nxa8 {[%clk 0:00:21.6]} 47. Qxa8+ {[%clk
0:00:21.6]} 47... Kh7 {[%clk 0:00:22.7]} 48. Qd5 {[%clk 0:00:21.6]} 48... f3
{[%clk 0:00:22.1]} 49. Qf5+ {[%clk 0:00:22.4]} 49... Kg8 {[%clk 0:00:21.3]} 50.
Ne4 {[%clk 0:00:22.9]} 50... Qd3+ {[%clk 0:00:21.1]} 51. Ka2 {[%clk 0:00:23.1]}
51... Qc4+ {[%clk 0:00:22]} 52. Ka3 {[%clk 0:00:23.8]} 52... Qd3+ {[%clk
0:00:22.6]} 53. b3 {[%clk 0:00:23.6]} 53... Qe3 {[%clk 0:00:23.4]} 54. Qe6+
{[%clk 0:00:22.4]} 54... Kf8 {[%clk 0:00:20.5]} 55. Qc8+ {[%clk 0:00:23]} 55...
Kf7 {[%clk 0:00:21.2]} 56. Qf5+ {[%clk 0:00:19.5]} 56... Kg8 {[%clk 0:00:20.8]}
57. Kb4 {[%clk 0:00:20]} 57... c6 {[%clk 0:00:19.8]} 58. Kc4 {[%clk 0:00:20.3]}
58... c5 {[%clk 0:00:20.4]} 59. Qe6+ {[%clk 0:00:19.6]} 59... Kf8 {[%clk
0:00:21.9]} 60. Kb5 {[%clk 0:00:20.2]} 60... Qd3+ {[%clk 0:00:20.6]} 61. Kb6
{[%clk 0:00:20.5]} 61... Qe3 {[%clk 0:00:18]} 62. Qf5+ {[%clk 0:00:20.6]} 62...
Kg8 {[%clk 0:00:19]} 63. Qe6+ {[%clk 0:00:21.3]} 63... Kf8 {[%clk 0:00:20.1]}
64. Kb7 {[%clk 0:00:22.2]} 64... f2 {[%clk 0:00:21.5]} 65. Qf5+ {[%clk
0:00:21.3]} 65... Kg8 {[%clk 0:00:22.9]} 66. Nxf2 {[%clk 0:00:20.7]} 66... Qxb3+
{[%clk 0:00:23.8]} 67. Kc6 {[%clk 0:00:22.1]} 67... Qf7 {[%clk 0:00:20.4]} 68.
Qc2 {[%clk 0:00:21.4]} 68... c4 {[%clk 0:00:20.6]} 69. Ne4 {[%clk 0:00:21.7]}
69... Qe6+ {[%clk 0:00:22]} 70. Nd6 {[%clk 0:00:22.6]} 70... h5 {[%clk
0:00:22.8]} 71. Qc3 {[%clk 0:00:23]} 71... h4 {[%clk 0:00:23.5]} 72. Kc5 {[%clk
0:00:24.1]} 72... h3 {[%clk 0:00:24.6]} 73. Qg3 {[%clk 0:00:24]} 73... c3 {[%clk
0:00:25.1]} 74. Qxc3 {[%clk 0:00:20.2]} 74... h2 {[%clk 0:00:25.7]} 75. Qf3
{[%clk 0:00:20.6]} 75... Qf6 {[%clk 0:00:21.7]} 76. Qd5+ {[%clk 0:00:19.7]}
76... Kh7 {[%clk 0:00:21.8]} 77. Qg2 {[%clk 0:00:10.6]} 77... Qe5+ {[%clk
0:00:20.8]} 78. Kc6 {[%clk 0:00:10.8]} 78... Qf4 {[%clk 0:00:20.5]} 79. Qh3+
{[%clk 0:00:09.7]} 79... Kg6 {[%clk 0:00:20.8]} 80. Qg2+ {[%clk 0:00:09.2]}
80... Kh6 {[%clk 0:00:21.6]} 81. Kd7 {[%clk 0:00:09.5]} 81... g5 {[%clk
0:00:21.6]} 82. Ke6 {[%clk 0:00:09.7]} 82... g4 {[%clk 0:00:22.4]} 83. Nf7+
{[%clk 0:00:09.6]} 83... Kg6 {[%clk 0:00:21.6]} 84. Ne5+ {[%clk 0:00:10.5]}
84... Kg5 {[%clk 0:00:21.6]} 85. Nf7+ {[%clk 0:00:11.1]} 85... Kh4 {[%clk
0:00:22.5]} 86. Ne5 {[%clk 0:00:13]} 86... Kg5 {[%clk 0:00:19.4]} 87. Qd5 {[%clk
0:00:12.3]} 87... Qf5+ {[%clk 0:00:19.7]} 88. Kd6 {[%clk 0:00:12.3]} 88... Qf6+
{[%clk 0:00:19.2]} 89. Kd7 {[%clk 0:00:12.8]} 89... Qf5+ {[%clk 0:00:19.2]} 90.
Kd6 {[%clk 0:00:13.2]} 90... h1=Q {[%clk 0:00:20.2]} 91. Qxh1 {[%clk 0:00:13.1]}
91... Qf6+ {[%clk 0:00:20.4]} 92. Kd5 {[%clk 0:00:14]} 92... Qf5 {[%clk
0:00:21.6]} 93. Qg2 {[%clk 0:00:13.3]} 93... Qf4 {[%clk 0:00:21.6]} 94. Kd6
{[%clk 0:00:12.1]} 94... Qf6+ {[%clk 0:00:22.5]} 95. Kd5 {[%clk 0:00:12.7]}
95... Qf4 {[%clk 0:00:24.1]} 96. Qc2 {[%clk 0:00:12.8]} 96... g3 {[%clk
0:00:23.6]} 97. Qg6+ {[%clk 0:00:12.1]} 97... Kh4 {[%clk 0:00:24.9]} 98. Qh7+
{[%clk 0:00:13.2]} 98... Kg5 {[%clk 0:00:26.2]} 99. Qg7+ {[%clk 0:00:13.2]}
99... Kh5 {[%clk 0:00:22.4]} 100. Qg6+ {[%clk 0:00:13.1]} 100... Kh4 {[%clk
0:00:23.5]} 101. Qh7+ {[%clk 0:00:14]} 101... Kg5 {[%clk 0:00:24.8]} 102. Qh3
{[%clk 0:00:11.5]} 102... Qd2+ {[%clk 0:00:22.9]} 103. Ke6 {[%clk 0:00:11.9]}
103... Qa2+ {[%clk 0:00:23.4]} 104. Ke7 {[%clk 0:00:11.7]} 104... Qa3+ {[%clk
0:00:24.1]} 105. Ke8 {[%clk 0:00:11]} 105... Qa4+ {[%clk 0:00:22.9]} 106. Ke7
{[%clk 0:00:09.5]} 106... Qb4+ {[%clk 0:00:22.7]} 107. Ke6 {[%clk 0:00:09.7]}
107... Qb3+ {[%clk 0:00:23.2]} 108. Kd6 {[%clk 0:00:09.8]} 108... Qb4+ {[%clk
0:00:24.3]} 109. Kd5 {[%clk 0:00:10.5]} 109... Qb3+ {[%clk 0:00:21.7]} 110. Kd4
{[%clk 0:00:09.2]} 110... Qb2+ {[%clk 0:00:23.1]} 111. Ke4 {[%clk 0:00:09]}
111... Qe2+ {[%clk 0:00:24.2]} 112. Kd5 {[%clk 0:00:09.4]} 112... Qa2+ {[%clk
0:00:23.4]} 113. Nc4 {[%clk 0:00:09.4]} 113... Qf2 {[%clk 0:00:21.8]} 114. Nd6
{[%clk 0:00:08.1]} 114... Qd2+ {[%clk 0:00:19.3]} 115. Ke6 {[%clk 0:00:08.7]}
115... Qe2+ {[%clk 0:00:16.9]} 116. Kd5 {[%clk 0:00:09.4]} 116... Qd3+ {[%clk
0:00:17.6]} 117. Ke5 {[%clk 0:00:09.4]} 117... Qc3+ {[%clk 0:00:18.9]} 118. Ke6
{[%clk 0:00:10.2]} 118... Qe3+ {[%clk 0:00:19.7]} 119. Kd7 {[%clk 0:00:10.8]}
119... Qd3 {[%clk 0:00:19.6]} 120. Qg2 {[%clk 0:00:08.9]} 120... Kf4 {[%clk
0:00:17.8]} 121. Qg1 {[%clk 0:00:09.1]} 121... Kf3 {[%clk 0:00:18.1]} 122. Qh1+
{[%clk 0:00:09.4]} 122... Kf2 {[%clk 0:00:16.3]} 123. Qh4 {[%clk 0:00:09.9]}
123... Qf3 {[%clk 0:00:15.4]} 124. Ke6 {[%clk 0:00:09.7]} 124... Ke3 {[%clk
0:00:14.1]} 125. Nf5+ {[%clk 0:00:09.6]} 125... Kf2 {[%clk 0:00:14.9]} 126. Kf6
{[%clk 0:00:09]} 126... Kf1 {[%clk 0:00:14.4]} 127. Qh3+ {[%clk 0:00:08.3]}
127... Kf2 {[%clk 0:00:14.4]} 128. Qh4 {[%clk 0:00:08.7]} 128... Kf1 {[%clk
0:00:15.1]} 129. Qc4+ {[%clk 0:00:09.2]} 129... Kf2 {[%clk 0:00:14.7]} 130. Qc5+
{[%clk 0:00:10]} 130... Kf1 {[%clk 0:00:15.9]} 131. Qc1+ {[%clk 0:00:10.1]}
131... Kf2 {[%clk 0:00:16.5]} 132. Kg5 {[%clk 0:00:09.8]} 132... g2 {[%clk
0:00:16.3]} 133. Qd2+ {[%clk 0:00:10.2]} 133... Kf1 {[%clk 0:00:15.5]} 134. Qc1+
{[%clk 0:00:08.4]} 134... Kf2 {[%clk 0:00:16.8]} 135. Nh4 {[%clk 0:00:06.3]}
135... Qg3+ {[%clk 0:00:14.8]} 136. Kh5 {[%clk 0:00:07.3]} 136... g1=Q {[%clk
0:00:12.1]} 137. Qd2+ {[%clk 0:00:07.3]} 137... Kf1 {[%clk 0:00:13.4]} 138. Qd1+
{[%clk 0:00:08.2]} 138... Kf2 {[%clk 0:00:14]} 139. Qd2+ {[%clk 0:00:08.5]}
139... Kf1 {[%clk 0:00:15.4]} 140. Qd1+ {[%clk 0:00:09.3]} 140... Kf2 {[%clk
0:00:16.2]} 141. Qd2+ {[%clk 0:00:10]} 141... Kf1 {[%clk 0:00:17.7]} 142. Qd1+
{[%clk 0:00:10.9]} 1/2-1/2

[Event "*** Titled Tuesday Blitz"]
[Site "Chess.com"]
[Date "2019.02.05"]
[Round "5"]
[White "Peng_Li-Min"]
[Black "Supernotar"]
[Result "1/2-1/2"]
[WhiteElo "2672"]
[BlackElo "2486"]
[TimeControl "180+2"]
[EndTime "14:00:48 PST"]
[Termination "Game drawn by agreement"]

1. e4 {[%clk 0:02:55.6]} 1... c6 {[%clk 0:03:01]} 2. d4 {[%clk 0:02:56.6]} 2...
d5 {[%clk 0:03:02.4]} 3. Nc3 {[%clk 0:02:58.5]} 3... dxe4 {[%clk 0:03:03.6]} 4.
Nxe4 {[%clk 0:02:59.6]} 4... Bf5 {[%clk 0:03:04.8]} 5. Ng3 {[%clk 0:03:00.9]}
5... Bg6 {[%clk 0:03:06.1]} 6. h4 {[%clk 0:03:02.3]} 6... h6 {[%clk 0:03:07]} 7.
Nh3 {[%clk 0:03:03.4]} 7... e6 {[%clk 0:03:07.9]} 8. Nf4 {[%clk 0:03:04.6]} 8...
Bh7 {[%clk 0:03:09.2]} 9. Nfh5 {[%clk 0:03:06.5]} 9... Nf6 {[%clk 0:03:05.6]}
10. c3 {[%clk 0:03:07.9]} 10... Nbd7 {[%clk 0:03:05.4]} 11. Bc4 {[%clk 0:03:09]}
11... Nxh5 {[%clk 0:03:05.6]} 12. Nxh5 {[%clk 0:03:10.9]} 12... Nf6 {[%clk
0:03:06.5]} 13. Bf4 {[%clk 0:03:12.3]} 13... Nxh5 {[%clk 0:03:03.4]} 14. Qxh5
{[%clk 0:03:14.2]} 14... Bg6 {[%clk 0:03:04.3]} 15. Qg4 {[%clk 0:03:14.3]} 15...
Bf5 {[%clk 0:03:04.1]} 16. Qg3 {[%clk 0:03:15.1]} 16... Qd7 {[%clk 0:02:52.5]}
17. O-O-O {[%clk 0:03:08.6]} 17... O-O-O {[%clk 0:02:52.9]} 18. Bd3 {[%clk
0:03:06]} 18... Bxd3 {[%clk 0:02:49.5]} 19. Rxd3 {[%clk 0:03:07.9]} 19... Qd5
{[%clk 0:02:48.6]} 20. Kb1 {[%clk 0:03:08.7]} 20... g6 {[%clk 0:02:33]} 21. Qf3
{[%clk 0:03:05]} 21... Bg7 {[%clk 0:02:28.2]} 22. Re1 {[%clk 0:03:04.9]} 22...
Qxf3 {[%clk 0:02:18.4]} 23. Rxf3 {[%clk 0:03:06.8]} 23... Rd7 {[%clk 0:02:17.6]}
24. Be5 {[%clk 0:03:08]} 24... Bxe5 {[%clk 0:02:15.6]} 25. Rxe5 {[%clk
0:03:09.9]} 25... h5 {[%clk 0:02:16.8]} 26. Re4 {[%clk 0:03:08.1]} 26... Kd8
{[%clk 0:02:16]} 27. Kc2 {[%clk 0:03:08.9]} 27... Ke7 {[%clk 0:02:14.2]} 28. Re5
{[%clk 0:03:07.8]} 1/2-1/2

[Event "*** Titled Tuesday Blitz"]
[Site "Chess.com"]
[Date "2019.02.05"]
[Round "5"]
[White "Koksik_13"]
[Black "jefferyx"]
[Result "1-0"]
[WhiteElo "2693"]
[BlackElo "2853"]
[TimeControl "180+2"]
[EndTime "14:00:55 PST"]
[Termination "Koksik_13 won by resignation"]

1. e4 {[%clk 0:02:55.6]} 1... c5 {[%clk 0:02:56.2]} 2. c3 {[%clk 0:02:55.4]}
2... Nf6 {[%clk 0:02:53.6]} 3. e5 {[%clk 0:02:54.8]} 3... Nd5 {[%clk 0:02:55]}
4. d4 {[%clk 0:02:56.7]} 4... d6 {[%clk 0:02:50.3]} 5. exd6 {[%clk 0:02:56.4]}
5... Qxd6 {[%clk 0:02:46.1]} 6. Nf3 {[%clk 0:02:57.3]} 6... g6 {[%clk
0:02:35.9]} 7. Be2 {[%clk 0:02:52.2]} 7... Bg7 {[%clk 0:02:36.6]} 8. O-O {[%clk
0:02:53.5]} 8... O-O {[%clk 0:02:37]} 9. Na3 {[%clk 0:02:53.4]} 9... cxd4 {[%clk
0:02:35]} 10. Nxd4 {[%clk 0:02:53.7]} 10... Rd8 {[%clk 0:02:35.2]} 11. Bf3
{[%clk 0:02:51.5]} 11... a6 {[%clk 0:02:31.9]} 12. Qe2 {[%clk 0:02:51.8]} 12...
e5 {[%clk 0:02:25]} 13. Nb3 {[%clk 0:02:42.1]} 13... f5 {[%clk 0:02:06]} 14. Bg5
{[%clk 0:02:42.4]} 14... Bf6 {[%clk 0:01:39.6]} 15. Bxd5+ {[%clk 0:02:41.6]} 1-0

[Event "*** Titled Tuesday Blitz"]
[Site "Chess.com"]
[Date "2019.02.05"]
[Round "5"]
[White "scaryninja"]
[Black "ezkybel"]
[Result "1/2-1/2"]
[WhiteElo "2423"]
[BlackElo "2265"]
[TimeControl "180+2"]
[EndTime "14:01:21 PST"]
[Termination "Game drawn by repetition"]

1. e4 {[%clk 0:03:01.9]} 1... e6 {[%clk 0:03:00.7]} 2. d4 {[%clk 0:03:02]} 2...
d5 {[%clk 0:03:01.6]} 3. Nc3 {[%clk 0:03:01.9]} 3... dxe4 {[%clk 0:02:59.3]} 4.
Nxe4 {[%clk 0:03:03.8]} 4... Bd7 {[%clk 0:03:00.7]} 5. Nf3 {[%clk 0:03:02.9]}
5... Bc6 {[%clk 0:03:02]} 6. Bd3 {[%clk 0:03:02.5]} 6... Nd7 {[%clk 0:03:02.8]}
7. c3 {[%clk 0:03:02.3]} 7... Ngf6 {[%clk 0:03:03.1]} 8. Nxf6+ {[%clk
0:03:01.3]} 8... Nxf6 {[%clk 0:03:03.4]} 9. O-O {[%clk 0:03:02.7]} 9... Bxf3
{[%clk 0:03:04.4]} 10. Qxf3 {[%clk 0:03:03.1]} 10... c6 {[%clk 0:03:06]} 11. Bg5
{[%clk 0:03:00.1]} 11... Be7 {[%clk 0:03:04.5]} 12. Rad1 {[%clk 0:03:01.4]}
12... Qd5 {[%clk 0:03:05.2]} 13. Qxd5 {[%clk 0:02:42.7]} 13... Nxd5 {[%clk
0:03:05.2]} 14. Bc1 {[%clk 0:02:41]} 14... O-O {[%clk 0:03:03]} 15. Rfe1 {[%clk
0:02:37.7]} 15... a5 {[%clk 0:03:01.9]} 16. f4 {[%clk 0:02:33.2]} 16... g6
{[%clk 0:03:00]} 17. g3 {[%clk 0:02:28.6]} 17... a4 {[%clk 0:03:01.1]} 18. Bd2
{[%clk 0:02:14.9]} 18... a3 {[%clk 0:03:00.7]} 19. b3 {[%clk 0:02:14.1]} 19...
Nf6 {[%clk 0:02:53.3]} 20. Kg2 {[%clk 0:02:02.3]} 20... Rfd8 {[%clk 0:02:54.2]}
21. Be3 {[%clk 0:01:56.8]} 21... Nd5 {[%clk 0:02:49.6]} 22. Bd2 {[%clk 0:01:52]}
22... Nf6 {[%clk 0:02:42.6]} 23. Be3 {[%clk 0:01:51.3]} 23... Nd5 {[%clk
0:02:43.2]} 24. Bd2 {[%clk 0:01:44.6]} 24... Nf6 {[%clk 0:02:44]} 25. Be3 {[%clk
0:01:45.5]} 1/2-1/2

[Event "*** Titled Tuesday Blitz"]
[Site "Chess.com"]
[Date "2019.02.05"]
[Round "5"]
[White "idvidal"]
[Black "cool4chess"]
[Result "1/2-1/2"]
[WhiteElo "2482"]
[BlackElo "2314"]
[TimeControl "180+2"]
[EndTime "14:01:52 PST"]
[Termination "Game drawn by repetition"]

1. c4 {[%clk 0:03:01.9]} 1... e5 {[%clk 0:03:00.8]} 2. Nc3 {[%clk 0:03:02.7]}
2... Nf6 {[%clk 0:03:02]} 3. g3 {[%clk 0:03:03.6]} 3... Nc6 {[%clk 0:03:03]} 4.
Bg2 {[%clk 0:03:04]} 4... Bc5 {[%clk 0:03:04.1]} 5. e3 {[%clk 0:03:04.9]} 5...
d5 {[%clk 0:03:04.6]} 6. Nxd5 {[%clk 0:02:35.3]} 6... Nxd5 {[%clk 0:03:03.4]} 7.
cxd5 {[%clk 0:02:35.7]} 7... Nb4 {[%clk 0:03:04.6]} 8. d4 {[%clk 0:02:24.3]}
8... exd4 {[%clk 0:02:54.1]} 9. exd4 {[%clk 0:02:26.2]} 9... Be7 {[%clk
0:02:36]} 10. Ne2 {[%clk 0:02:07.7]} 10... Bf5 {[%clk 0:02:36.1]} 11. O-O {[%clk
0:01:48.6]} 11... Nc2 {[%clk 0:02:32.7]} 12. Rb1 {[%clk 0:01:17.2]} 12... Nb4
{[%clk 0:02:30.5]} 13. Ra1 {[%clk 0:00:59.3]} 13... Nc2 {[%clk 0:02:16.3]} 14.
Rb1 {[%clk 0:01:00]} 14... Nb4 {[%clk 0:02:17.6]} 15. Ra1 {[%clk 0:00:59.8]}
1/2-1/2

[Event "*** Titled Tuesday Blitz"]
[Site "Chess.com"]
[Date "2019.02.05"]
[Round "5"]
[White "JoachimMouhamad"]
[Black "Vuks91"]
[Result "0-1"]
[WhiteElo "2291"]
[BlackElo "2427"]
[TimeControl "180+2"]
[EndTime "14:02:59 PST"]
[Termination "Vuks91 won by resignation"]

1. e4 {[%clk 0:00:20.8]} 1... c5 {[%clk 0:03:00]} 2. Nf3 {[%clk 0:00:21.8]} 2...
Nc6 {[%clk 0:03:01]} 3. d4 {[%clk 0:00:23.3]} 3... cxd4 {[%clk 0:03:02.9]} 4.
Nxd4 {[%clk 0:00:25.2]} 4... g6 {[%clk 0:03:04.4]} 5. c4 {[%clk 0:00:20.2]} 5...
Bg7 {[%clk 0:03:05.5]} 6. Be3 {[%clk 0:00:21.5]} 6... Nf6 {[%clk 0:03:06.3]} 7.
Nc3 {[%clk 0:00:22.5]} 7... O-O {[%clk 0:03:07.9]} 8. Nc2 {[%clk 0:00:17.8]}
8... d6 {[%clk 0:02:56.5]} 9. Be2 {[%clk 0:00:17.4]} 9... Be6 {[%clk 0:02:44.6]}
10. f3 {[%clk 0:00:10.9]} 10... Nd7 {[%clk 0:02:42.8]} 11. O-O {[%clk
0:00:10.6]} 11... Nb6 {[%clk 0:02:13.7]} 12. Na3 {[%clk 0:00:11.7]} 12... Na5
{[%clk 0:02:07]} 13. Bxb6 {[%clk 0:00:09.7]} 13... Qxb6+ {[%clk 0:02:07.4]} 0-1

[Event "*** Titled Tuesday Blitz"]
[Site "Chess.com"]
[Date "2019.02.05"]
[Round "5"]
[White "VFernandezB"]
[Black "BasilSmash"]
[Result "0-1"]
[WhiteElo "2227"]
[BlackElo "2352"]
[TimeControl "180+2"]
[EndTime "14:03:12 PST"]
[Termination "BasilSmash won by checkmate"]

1. e4 {[%clk 0:03:01.9]} 1... c6 {[%clk 0:03:01]} 2. d4 {[%clk 0:03:02.3]} 2...
d5 {[%clk 0:03:02.9]} 3. exd5 {[%clk 0:03:03.2]} 3... cxd5 {[%clk 0:03:04.3]} 4.
c4 {[%clk 0:03:04.2]} 4... Nf6 {[%clk 0:03:05.5]} 5. Nc3 {[%clk 0:03:05.7]} 5...
Nc6 {[%clk 0:03:06.4]} 6. Bg5 {[%clk 0:03:06.7]} 6... e6 {[%clk 0:03:07]} 7. Nf3
{[%clk 0:03:07.2]} 7... Be7 {[%clk 0:03:07.2]} 8. c5 {[%clk 0:03:08.5]} 8... O-O
{[%clk 0:03:07.5]} 9. Bd3 {[%clk 0:03:08.1]} 9... b6 {[%clk 0:03:03.4]} 10. Bb5
{[%clk 0:03:06]} 10... Bd7 {[%clk 0:03:02.9]} 11. Bxc6 {[%clk 0:03:05.4]} 11...
Bxc6 {[%clk 0:03:04.8]} 12. Ne5 {[%clk 0:03:06.7]} 12... Be8 {[%clk 0:03:05.4]}
13. b4 {[%clk 0:03:02.1]} 13... a5 {[%clk 0:03:06.3]} 14. a3 {[%clk 0:03:02.6]}
14... h6 {[%clk 0:03:06.9]} 15. Be3 {[%clk 0:02:59]} 15... Ne4 {[%clk
0:03:02.5]} 16. Nxe4 {[%clk 0:02:59.1]} 16... dxe4 {[%clk 0:03:04.4]} 17. O-O
{[%clk 0:02:56.6]} 17... Bb5 {[%clk 0:02:59.6]} 18. Re1 {[%clk 0:02:52.8]} 18...
Qd5 {[%clk 0:02:58.8]} 19. a4 {[%clk 0:02:46.2]} 19... Bc4 {[%clk 0:02:51.1]}
20. Qg4 {[%clk 0:02:31.2]} 20... f5 {[%clk 0:02:31.6]} 21. Ng6 {[%clk
0:02:06.1]} 21... Bf6 {[%clk 0:02:25.6]} 22. Qh5 {[%clk 0:02:02.7]} 22... Rfd8
{[%clk 0:02:16.6]} 23. bxa5 {[%clk 0:01:57.7]} 23... bxc5 {[%clk 0:02:12.9]} 24.
Rad1 {[%clk 0:01:57.1]} 24... Bb3 {[%clk 0:02:07.4]} 25. Rd2 {[%clk 0:01:54.4]}
25... c4 {[%clk 0:02:06.1]} 26. Bxh6 {[%clk 0:01:47]} 26... gxh6 {[%clk
0:02:05.1]} 27. Qxh6 {[%clk 0:01:47.8]} 27... c3 {[%clk 0:02:04.8]} 28. Nf4
{[%clk 0:01:38.1]} 28... cxd2 {[%clk 0:01:57.3]} 29. Rf1 {[%clk 0:01:33.4]}
29... Qxd4 {[%clk 0:01:53.3]} 30. Qg6+ {[%clk 0:01:30.7]} 30... Bg7 {[%clk
0:01:52.8]} 31. Nh5 {[%clk 0:01:31.4]} 31... d1=Q {[%clk 0:01:52.3]} 32. h4
{[%clk 0:01:28.2]} 32... Qxf1+ {[%clk 0:01:51.3]} 33. Kxf1 {[%clk 0:01:29.7]}
33... Qd1# {[%clk 0:01:52.2]} 0-1

[Event "*** Titled Tuesday Blitz"]
[Site "Chess.com"]
[Date "2019.02.05"]
[Round "5"]
[White "Feegus"]
[Black "nocnypako"]
[Result "1-0"]
[WhiteElo "2384"]
[BlackElo "2310"]
[TimeControl "180+2"]
[EndTime "14:03:33 PST"]
[Termination "Feegus won on time"]

1. d4 {[%clk 0:03:01.6]} 1... Nf6 {[%clk 0:00:56.2]} 2. Bf4 {[%clk 0:02:58.6]}
2... d5 {[%clk 0:00:56]} 3. e3 {[%clk 0:02:59.6]} 3... e6 {[%clk 0:00:56]} 4.
Nf3 {[%clk 0:03:00.2]} 4... Bd6 {[%clk 0:00:57.2]} 5. Ne5 {[%clk 0:03:00]} 5...
c5 {[%clk 0:00:52.9]} 6. c3 {[%clk 0:03:00.8]} 6... O-O {[%clk 0:00:51.8]} 7.
Nd2 {[%clk 0:02:59.6]} 7... Nc6 {[%clk 0:00:52.6]} 8. Bd3 {[%clk 0:02:58.5]}
8... Qc7 {[%clk 0:00:52.6]} 9. Ndf3 {[%clk 0:02:58.9]} 9... Ne4 {[%clk
0:00:50.7]} 10. O-O {[%clk 0:02:55.1]} 10... f6 {[%clk 0:00:49.4]} 11. Nxc6
{[%clk 0:02:52.9]} 11... Bxf4 {[%clk 0:00:43.4]} 12. exf4 {[%clk 0:02:54]} 12...
Qxc6 {[%clk 0:00:44.5]} 13. Re1 {[%clk 0:02:49.4]} 13... Nd6 {[%clk 0:00:42.1]}
14. dxc5 {[%clk 0:02:47.1]} 14... Qxc5 {[%clk 0:00:44]} 15. Nd4 {[%clk
0:02:48.6]} 15... Ne4 {[%clk 0:00:23.1]} 16. Bxe4 {[%clk 0:02:27.2]} 16... dxe4
{[%clk 0:00:25]} 17. Rxe4 {[%clk 0:02:23.9]} 17... Qd5 {[%clk 0:00:25.7]} 18.
Qe2 {[%clk 0:02:22.2]} 18... Bd7 {[%clk 0:00:16.2]} 19. Rd1 {[%clk 0:02:21.9]}
19... Rad8 {[%clk 0:00:14.5]} 20. Nxe6 {[%clk 0:02:15.8]} 20... Bb5 {[%clk
0:00:13.8]} 21. Nxd8 {[%clk 0:02:10.6]} 21... Bxe2 {[%clk 0:00:07.6]} 22. Rxd5
{[%clk 0:02:10.5]} 1-0